bitfinex/quotes_SOLUSD_20250429
["timestamp","ask_amount","ask_price","bid_price","bid_amount"]
[1745937122959,24.79911042,147.11,147.08,6.79902094]
[1745937123162,107.69911042,147.12,147.08,31.59813136]
[1745937124156,24.79911042,147.1,147.07,14.46]
[1745937124364,107.69911042,147.09,147.07,14.46]
[1745937124562,82.9,147.08,147.07,14.46]
[1745937124864,82.9,147.08,147.04,31.59970958]
[1745937125071,82.9,147.07,147.04,46.05970958]
[1745937125245,82.9,147.07,147.04,14.46]
[1745937125451,107.69911042,147.07,147.03,6.80122452]
[1745937125658,107.69911042,147.07,147.03,21.26122452]
[1745937126064,107.69911042,147.07,147.03,46.06033494]
[1745937127299,82.9,147.07,147.05,24.79911042]
[1745937127447,82.9,147.07,147.06,24.79911042]
[1745937127854,82.9,147.1,147.06,24.79911042]
[1745937128061,82.9,147.1,147.09,24.79911042]
[1745937128554,82.9,147.1,147.08,39.23911042]
[1745937129053,82.9,147.1,147.09,24.79911042]
[1745937129374,82.9,147.1,147.09,31.59766912]
[1745937131159,82.9,147.1,147.09,6.7985587]
[1745937131359,82.9,147.1,147.09,31.59766912]
[1745937132373,82.9,147.13,147.09,31.59766912]
[1745937132673,82.9,147.12,147.1,24.79911042]
[1745937133582,82.9,147.12,147.11,31.59674484]
[1745937136083,0.03,147.14,147.11,48.73299246]
[1745937136384,0.03,147.14,147.13,24.79911042]
[1745937136686,0.03,147.14,147.13,39.23911042]
[1745937137561,0.03,147.14,147.13,46.03582081]
[1745937137981,0.03,147.14,147.13,14.44]
[1745937138585,82.93,147.14,147.13,14.44]
[1745937139084,107.72911042,147.14,147.13,14.44]
[1745937139761,82.93,147.14,147.13,14.44]
[1745937142895,107.72911042,147.14,147.13,14.44]
[1745937143094,114.52535889,147.14,147.08,6.79860024]
[1745937143300,24.79911042,147.09,147.07,14.44]
[1745937143469,107.69911042,147.08,147.07,14.44]
[1745937144799,107.69911042,147.08,147.03,31.60029417]
[1745937145007,82.9,147.07,147.04,14.44]
[1745937145181,107.69911042,147.07,147.04,14.44]
[1745937145383,24.79911042,147.06,147.04,14.44]
[1745937145703,82.9,147.05,147.04,14.44]
[1745937145891,24.79911042,147.06,147.04,14.44]
[1745937146286,24.79911042,147.07,147.04,14.44]
[1745937147105,18.64964886,147.09,147.04,39.23911042]
[1745937147106,24.79911042,147.09,147.04,39.23911042]
[1745937147278,82.9,147.08,147.04,39.23911042]
[1745937147978,82.9,147.08,147.04,46.03993887]
[1745937147979,107.69911042,147.08,147.04,46.03993887]
[1745937148491,82.9,147.08,147.05,24.79911042]
[1745937150484,82.9,147.08,147.05,31.59931123]
[1745937151308,82.9,147.08,147.05,24.79911042]
[1745937151904,107.69911042,147.08,147.04,46.03971543]
[1745937152814,24.79911042,147.06,147.04,14.44]
[1745937152973,82.9,147.05,147.04,14.44]
[1745937153177,82.9,147.05,147.04,21.24087051]
[1745937153501,82.9,147.05,147.04,46.03998093]
[1745937155506,82.9,147.09,147.04,46.03998093]
[1745937155804,82.9,147.11,147.08,24.79911042]
[1745937155976,82.9,147.1,147.09,14.44]
[1745937156178,82.9,147.1,147.09,39.23911042]
[1745937156376,82.9,147.12,147.09,39.23911042]
[1745937156577,0.03,147.14,147.11,24.79911042]
[1745937156809,0.03,147.14,147.1,0.14216157]
[1745937156988,0.03,147.14,147.13,24.79911042]
[1745937157603,0.03,147.14,147.13,31.59582081]
[1745937157805,0.03,147.14,147.13,6.79671039]
[1745937157984,0.03,147.14,147.13,31.59582081]
[1745937159503,0.03,147.14,147.13,24.79911042]
[1745937159680,0.03,147.14,147.11,6.79763442]
[1745937159880,0.03,147.14,147.09,31.43634451]
[1745937159881,0.03,147.14,147.13,24.79911042]
[1745937160113,0.03,147.14,147.12,24.79911042]
[1745937161915,0.03,147.14,147.09,21.23841976]
[1745937162091,0.03,147.14,147.11,24.79911042]
[1745937162614,82.9,147.13,147.09,14.44]
[1745937162794,82.9,147.13,147.09,39.23911042]
[1745937162993,82.9,147.13,147.09,14.44]
[1745937163198,82.9,147.13,147.1,24.79911042]
[1745937163918,82.9,147.13,147.09,39.23911042]
[1745937164090,107.69911042,147.13,147.09,14.44]
[1745937164292,24.79911042,147.11,147.09,14.44]
[1745937164505,82.9,147.1,147.09,14.44]
[1745937164692,24.79911042,147.12,147.09,14.44]
[1745937165393,24.79911042,147.11,147.07,24.79911042]
[1745937165615,24.79911042,147.11,147.07,39.19911042]
[1745937166000,24.79911042,147.11,147.07,14.4]
[1745937166208,24.79911042,147.11,147.07,39.19911042]
[1745937167328,43.44875928,147.12,147.07,39.19911042]
[1745937168323,1.5929,147.14,147.09,24.79911042]
[1745937168497,24.79911042,147.13,147.09,24.79911042]
[1745937168812,24.79911042,147.13,147.08,24.79911042]
[1745937169014,24.79911042,147.11,147.07,45.998452]
[1745937169493,8.38946781,147.14,147.07,45.998452]
[1745937169698,24.79911042,147.13,147.09,24.79911042]
[1745937170114,24.79911042,147.13,147.08,24.79911042]
[1745937171425,24.79911042,147.13,147.08,31.59776295]
[1745937171720,24.79911042,147.13,147.09,24.79911042]
[1745937171898,26.39201042,147.14,147.09,24.79911042]
[1745937172299,1.5929,147.14,147.09,24.79911042]
[1745937172509,26.39201042,147.14,147.09,24.79911042]
[1745937173719,26.39201042,147.14,147.1,24.79911042]
[1745937173720,1.5929,147.14,147.1,24.79911042]
[1745937174725,1.5929,147.14,147.11,24.79911042]
[1745937175132,0.03,147.14,147.12,24.79911042]
[1745937175327,0.03,147.14,147.13,24.79911042]
[1745937176217,0.03,147.14,147.12,14.4]
[1745937176404,0.03,147.14,147.12,39.19911042]
[1745937176722,0.03,147.14,147.13,24.79911042]
[1745937177019,0.03,147.14,147.13,31.59582081]
[1745937177916,0.03,147.14,147.13,24.79911042]
[1745937178122,0.03,147.14,147.12,39.19911042]
[1745937178630,82.93,147.14,147.13,24.79911042]
[1745937179306,82.93,147.14,147.12,39.19911042]
[1745937179517,82.9,147.13,147.12,14.4]
[1745937180230,82.9,147.13,147.12,39.19911042]
[1745937181236,82.9,147.13,147.12,14.4]
[1745937181609,82.9,147.13,147.09,24.79911042]
[1745937181802,24.82911042,147.14,147.09,39.19911042]
[1745937181803,82.9,147.12,147.09,39.19911042]
[1745937182003,82.9,147.11,147.09,14.4]
[1745937182230,82.9,147.11,147.09,39.19911042]
[1745937182835,82.9,147.11,147.1,24.79911042]
[1745937183703,82.9,147.11,147.09,45.99738459]
[1745937183921,82.9,147.11,147.1,24.79911042]
[1745937184231,82.9,147.13,147.1,24.79911042]
[1745937184534,0.03,147.14,147.12,24.79911042]
[1745937184704,0.03,147.14,147.13,24.79911042]
[1745937185611,0.03,147.14,147.13,31.59582081]
[1745937186614,0.03,147.14,147.11,24.79911042]
[1745937186819,0.03,147.14,147.12,24.79911042]
[1745937188139,82.9,147.13,147.12,24.79911042]
[1745937189748,82.9,147.13,147.11,24.79911042]
[1745937190416,82.9,147.13,147.11,39.17911042]
[1745937190616,82.9,147.13,147.12,24.79911042]
[1745937191247,0.03,147.14,147.12,24.79911042]
[1745937191536,0.03,147.14,147.13,24.79911042]
[1745937192042,0.03,147.14,147.13,31.59582081]
[1745937194415,0.03,147.14,147.13,57.75374149]
[1745937195640,0.03,147.14,147.13,56.39493123]
[1745937197941,0.03,147.15,147.14,0.14216157]
[1745937198238,1e-08,147.15,147.14,77.24119234]
[1745937200230,1e-08,147.15,147.14,84.03744081]
[1745937204755,0.03,147.18,147.17,26.14216157]
[1745937205054,0.03,147.18,147.17,65.30127199]
[1745937206961,0.03,147.18,147.17,72.09613507]
[1745937207166,0.03,147.2,147.18,18.933972]
[1745937207341,0.03,147.21,147.2,26.0]
[1745937207652,0.03,147.21,147.2,75.59822084]
[1745937207857,0.03,147.22,147.2,75.88254398]
[1745937208062,0.03,147.22,147.21,50.95627688]
[1745937208758,0.03,147.22,147.21,51.24060002]
[1745937208971,0.03,147.23,147.22,31.87598891]
[1745937209266,0.03,147.23,147.22,46.23598891]
[1745937211464,0.03,147.29,147.28,56.38800899]
[1745937212155,0.03,147.29,147.28,56.67233213]
[1745937212364,0.03,147.29,147.28,56.53017056]
[1745937214039,0.03,147.3,147.29,18.933972]
[1745937214260,0.03,147.32,147.31,51.08343356]
[1745937214465,0.03,147.32,147.31,52.44052728]
[1745937215135,0.03,147.33,147.31,77.87858154]
[1745937215342,0.03,147.35,147.34,26.14216157]
[1745937215545,0.03,147.35,147.34,50.94127199]
[1745937215953,0.03,147.35,147.34,50.79911042]
[1745937216159,0.03,147.35,147.34,50.94127199]
[1745937216846,0.03,147.35,147.34,75.74038241]
[1745937217267,0.03,147.35,147.34,82.66956719]
[1745937218264,1e-08,147.35,147.34,82.66956719]
[1745937219273,1e-08,147.35,147.34,101.31921605]
[1745937219646,1e-08,147.35,147.34,82.66956719]
[1745937221771,0.03,147.38,147.34,118.28677407]
[1745937221949,0.03,147.38,147.37,0.14216157]
[1745937222267,82.93,147.44,147.37,65.40343356]
[1745937222466,82.93,147.44,147.43,24.79911042]
[1745937223451,82.93,147.44,147.43,31.58199043]
[1745937223854,82.93,147.44,147.43,24.79911042]
[1745937224375,82.93,147.44,147.43,31.58199043]
[1745937224839,82.93,147.44,147.43,31.724152]
[1745937226165,82.93,147.44,147.43,31.58199043]
[1745937226348,82.93,147.44,147.43,6.78288001]
[1745937226546,82.93,147.44,147.43,31.58199043]
[1745937227347,82.93,147.44,147.43,24.79911042]
[1745937227866,115.75571042,147.44,147.4,24.79911042]
[1745937228048,82.9,147.43,147.4,24.79911042]
[1745937228561,82.9,147.43,147.41,24.79911042]
[1745937229338,82.9,147.43,147.4,24.79911042]
[1745937229744,82.9,147.43,147.39,14.32]
[1745937229959,82.9,147.43,147.4,24.79911042]
[1745937230160,82.9,147.43,147.39,14.32]
[1745937230356,107.69911042,147.43,147.39,39.11911042]
[1745937230683,82.9,147.43,147.39,39.11911042]
[1745937230875,107.69911042,147.43,147.39,45.90382626]
[1745937231181,107.69911042,147.43,147.39,39.11911042]
[1745937231354,24.79911042,147.41,147.37,14.32]
[1745937231559,82.9,147.4,147.38,24.79911042]
[1745937233478,82.9,147.4,147.39,31.58383122]
[1745937233664,82.9,147.43,147.39,31.58383122]
[1745937234054,82.9,147.43,147.41,24.79911042]
[1745937234380,82.9,147.42,147.41,24.79911042]
[1745937235379,82.9,147.42,147.4,24.79911042]
[1745937235680,82.9,147.42,147.39,24.79911042]
[1745937235860,107.69911042,147.42,147.38,24.79911042]
[1745937236062,82.9,147.41,147.39,24.79911042]
[1745937236489,82.9,147.41,147.38,24.79911042]
[1745937236667,107.69911042,147.41,147.37,14.32]
[1745937237156,24.79911042,147.4,147.37,14.32]
[1745937238079,31.58339994,147.4,147.37,14.32]
[1745937238285,107.69911042,147.39,147.37,14.32]
[1745937238577,82.9,147.38,147.37,14.32]
[1745937240576,82.9,147.38,147.37,45.904752]
[1745937241754,82.9,147.43,147.37,63.01101752]
[1745937241950,82.9,147.42,147.41,24.79911042]
[1745937242150,82.9,147.42,147.37,38.2119071]
[1745937242403,82.9,147.41,147.39,31.58373988]
[1745937242683,82.9,147.41,147.39,24.79911042]
[1745937242991,82.9,147.41,147.4,24.79911042]
[1745937245290,82.9,147.41,147.39,6.78472018]
[1745937245474,82.9,147.41,147.39,24.79911042]
[1745937245974,82.9,147.41,147.37,14.32]
[1745937245975,82.9,147.4,147.37,14.32]
[1745937246177,107.69911042,147.39,147.37,14.32]
[1745937246386,24.79911042,147.38,147.37,14.32]
[1745937246586,82.9,147.39,147.37,14.32]
[1745937248178,82.9,147.39,147.37,39.11911042]
[1745937248374,82.9,147.39,147.38,24.79911042]
[1745937248763,82.9,147.39,147.38,31.58429158]
[1745937249591,58.85571042,147.44,147.38,31.58429158]
[1745937249592,82.9,147.42,147.38,31.58429158]
[1745937249888,107.69911042,147.43,147.39,24.79911042]
[1745937250589,82.9,147.43,147.4,24.79911042]
[1745937250792,24.79911042,147.42,147.38,31.58429158]
[1745937251091,107.69911042,147.43,147.38,31.58429158]
[1745937251389,107.69911042,147.43,147.39,24.79911042]
[1745937252591,82.9,147.42,147.39,24.79911042]
[1745937253276,82.9,147.42,147.39,31.58378457]
[1745937253899,82.9,147.42,147.38,31.58408615]
[1745937254271,82.9,147.42,147.37,45.90453081]
[1745937254272,107.69911042,147.42,147.37,45.90453081]
[1745937254583,24.79911042,147.4,147.37,14.32]
[1745937254772,82.9,147.39,147.37,14.32]
[1745937255097,7.798,147.37,147.33,6.78726925]
[1745937255292,107.69911042,147.36,147.33,6.78726925]
[1745937255692,82.9,147.35,147.33,6.78726925]
[1745937256293,82.9,147.34,147.32,45.92983826]
[1745937256596,82.9,147.34,147.32,21.13072784]
[1745937256782,82.9,147.34,147.32,14.343]
[1745937256964,24.79911042,147.33,147.32,14.343]
[1745937257998,82.9,147.36,147.32,45.93003683]
[1745937258300,91.0593,147.41,147.35,49.59822084]
[1745937258461,82.9,147.4,147.36,0.14216157]
[1745937258668,82.9,147.4,147.39,24.79911042]
[1745937263409,26.0,147.36,147.32,0.063]
[1745937263571,24.79911042,147.34,147.32,0.063]
[1745937264100,26.0,147.35,147.32,0.063]
[1745937264402,50.79911042,147.35,147.32,0.063]
[1745937265470,26.0,147.35,147.32,0.063]
[1745937265695,50.79911042,147.35,147.32,0.063]
[1745937266417,24.79911042,147.34,147.32,0.063]
[1745937266578,24.79911042,147.33,147.32,0.063]
[1745937266995,26.0,147.35,147.32,0.063]
[1745937267196,24.79911042,147.35,147.32,0.063]
[1745937267680,24.79911042,147.34,147.32,0.063]
[1745937270291,82.9,147.33,147.32,0.063]
[1745937271295,82.9,147.33,147.32,24.86211042]
[1745937271494,82.9,147.33,147.32,0.063]
[1745937272510,82.9,147.33,147.32,24.86211042]
[1745937273607,82.9,147.36,147.32,25.00427199]
[1745937273784,82.9,147.36,147.33,24.79911042]
[1745937274395,107.69911042,147.36,147.32,25.00427199]
[1745937274715,24.79911042,147.35,147.32,0.063]
[1745937277493,24.79911042,147.33,147.32,0.063]
[1745937278013,31.58659429,147.33,147.32,0.063]
[1745937279509,38.22799429,147.33,147.32,0.063]
[1745937281110,39.88629429,147.33,147.32,0.063]
[1745937290234,24.79911042,147.33,147.32,0.063]
[1745937290533,26.0,147.34,147.32,0.063]
[1745937290709,24.79911042,147.35,147.32,0.063]
[1745937291107,15.02684789,147.37,147.32,0.063]
[1745937291317,24.79911042,147.36,147.32,24.86211042]
[1745937291918,24.79911042,147.37,147.32,24.86211042]
[1745937292127,24.79911042,147.38,147.34,24.79911042]
[1745937292470,39.55183504,147.41,147.37,24.79911042]
[1745937292732,24.79911042,147.4,147.36,24.79911042]
[1745937293037,24.79911042,147.39,147.35,24.79911042]
[1745937293715,24.79911042,147.38,147.34,31.5858054]
[1745937293922,24.79911042,147.39,147.34,31.5858054]
[1745937294230,24.79911042,147.38,147.34,24.79911042]
[1745937294834,82.9,147.37,147.34,24.79911042]
[1745937295134,82.9,147.37,147.34,31.58597368]
[1745937295432,82.9,147.37,147.35,24.79911042]
[1745937296249,82.9,147.37,147.35,31.58557939]
[1745937296428,82.9,147.37,147.36,24.79911042]
[1745937297052,82.9,147.39,147.36,24.79911042]
[1745937297221,82.9,147.39,147.37,24.79911042]
[1745937297546,82.9,147.39,147.38,24.79911042]
[1745937298122,24.79911042,147.42,147.38,24.79911042]
[1745937298321,82.9,147.41,147.38,24.79911042]
[1745937298954,24.79911042,147.39,147.37,14.26]
[1745937299541,24.79911042,147.38,147.37,14.26]
[1745937300742,31.58429158,147.38,147.33,14.26]
[1745937300945,108.9,147.4,147.33,14.26]
[1745937300946,107.69911042,147.37,147.33,14.26]
[1745937301120,107.69911042,147.37,147.33,39.05911042]
[1745937301450,107.69911042,147.36,147.33,14.26]
[1745937301624,24.79911042,147.35,147.33,14.26]
[1745937301825,107.69911042,147.34,147.33,14.26]
[1745937302063,24.79911042,147.34,147.33,14.26]
[1745937302379,24.79911042,147.37,147.33,14.26]
[1745937303078,24.79911042,147.36,147.33,14.26]
[1745937303452,24.79911042,147.35,147.33,14.26]
[1745937303661,6.78595082,147.37,147.32,0.063]
[1745937303960,24.79911042,147.33,147.32,0.063]
[1745937304141,24.79911042,147.35,147.32,0.063]
[1745937304867,24.79911042,147.34,147.32,0.063]
[1745937305750,24.79911042,147.33,147.32,0.063]
[1745937307849,50.37840472,147.33,147.32,0.063]
[1745937308221,50.23624315,147.33,147.32,0.063]
[1745937308418,50.37840472,147.33,147.32,0.063]
[1745937309066,76.37840472,147.33,147.32,0.063]
[1745937309226,84.02310472,147.33,147.32,0.063]
[1745937312758,24.79911042,147.33,147.32,0.063]
[1745937312945,24.79911042,147.34,147.32,0.063]
[1745937313740,24.79911042,147.33,147.32,0.063]
[1745937314770,31.58659429,147.33,147.32,0.063]
[1745937318328,24.79911042,147.33,147.32,0.063]
[1745937318730,26.53621043,147.37,147.32,0.063]
[1745937318949,24.79911042,147.35,147.32,0.063]
[1745937319266,24.79911042,147.36,147.32,24.86211042]
[1745937320335,51.57666396,147.39,147.32,31.64995506]
[1745937320552,51.57666396,147.39,147.33,24.79911042]
[1745937320757,24.79911042,147.37,147.33,24.79911042]
[1745937321264,82.9,147.38,147.35,24.79911042]
[1745937321557,82.9,147.37,147.35,24.79911042]
[1745937322351,82.9,147.37,147.35,31.58543859]
[1745937323562,82.9,147.37,147.35,6.78632817]
[1745937326957,82.9,147.37,147.35,31.58543859]
[1745937330368,24.79911042,147.36,147.34,6.78684059]
[1745937331470,24.79911042,147.36,147.33,6.78748387]
[1745937331872,24.79911042,147.35,147.32,6.85078866]
[1745937332042,24.79911042,147.34,147.32,0.063]
[1745937332241,107.69911042,147.35,147.32,6.85077363]
[1745937334386,82.9,147.35,147.32,31.64988405]
[1745937334541,107.69911042,147.35,147.32,6.85077363]
[1745937337754,82.9,147.34,147.32,6.85077363]
[1745937339167,82.9,147.34,147.32,0.063]
[1745937340377,107.69911042,147.34,147.32,0.063]
[1745937340872,82.9,147.34,147.32,0.063]
[1745937342784,107.69911042,147.34,147.32,0.063]
[1745937343072,82.9,147.33,147.32,0.063]
[1745937343260,107.69911042,147.33,147.32,0.063]
[1745937343958,82.9,147.33,147.32,0.063]
[1745937345273,107.69911042,147.33,147.32,0.063]
[1745937346478,24.79911042,147.34,147.32,0.063]
[1745937346848,1.6045,147.36,147.32,24.86211042]
[1745937347081,26.40361042,147.36,147.32,24.86211042]
[1745937347585,15.48320534,147.36,147.32,15.54620534]
[1745937349492,24.7748279,147.36,147.33,6.78748387]
[1745937350081,24.7748279,147.35,147.32,6.85074466]
[1745937350773,18.64964886,147.39,147.33,24.7748279]
[1745937350974,107.6748279,147.38,147.33,24.7748279]
[1745937351588,24.7748279,147.37,147.33,6.78711789]
[1745937352196,24.7748279,147.36,147.33,6.78711789]
[1745937352398,82.9,147.35,147.33,6.78711789]
[1745937353494,82.9,147.35,147.33,31.56194579]
[1745937353692,107.6748279,147.38,147.34,24.7748279]
[1745937353997,82.9,147.38,147.34,24.7748279]
[1745937354364,82.9,147.38,147.37,24.7748279]
[1745937354690,6.1349,147.41,147.37,24.7748279]
[1745937355198,30.9097279,147.41,147.37,24.7748279]
[1745937355573,24.7748279,147.4,147.36,38.9748279]
[1745937355773,6.1349,147.41,147.37,24.7748279]
[1745937356016,30.9097279,147.41,147.37,24.7748279]
[1745937357098,30.9097279,147.41,147.36,45.76071376]
[1745937357270,24.7748279,147.4,147.36,45.76071376]
[1745937357893,6.1349,147.41,147.36,45.76071376]
[1745937358103,30.9097279,147.41,147.36,20.98588586]
[1745937358271,30.9097279,147.41,147.36,45.76071376]
[1745937358595,6.1349,147.41,147.37,24.7748279]
[1745937358774,30.9097279,147.41,147.37,24.7748279]
[1745937358972,30.9097279,147.41,147.36,45.76071376]
[1745937359896,24.7748279,147.4,147.36,45.76071376]
[1745937360283,30.9097279,147.41,147.36,45.76071376]
[1745937360493,30.9097279,147.41,147.37,24.7748279]
[1745937360687,30.9097279,147.41,147.36,45.76071376]
[1745937361279,107.6748279,147.4,147.36,45.76071376]
[1745937362105,24.7748279,147.39,147.36,14.2]
[1745937362305,24.7748279,147.38,147.36,14.2]
[1745937362495,107.6748279,147.39,147.36,14.2]
[1745937362684,82.9,147.39,147.36,14.2]
[1745937363386,107.6748279,147.39,147.36,14.2]
[1745937364101,82.9,147.39,147.36,14.2]
[1745937364400,107.6748279,147.39,147.36,14.2]
[1745937364572,82.9,147.39,147.36,38.9748279]
[1745937364906,82.9,147.39,147.38,24.7748279]
[1745937365207,82.9,147.39,147.37,24.7748279]
[1745937365577,82.9,147.39,147.36,20.9860776]
[1745937365774,107.6748279,147.39,147.36,14.2]
[1745937366069,24.7748279,147.38,147.36,14.2]
[1745937368292,105.88491643,147.39,147.36,14.2]
[1745937369109,24.7748279,147.37,147.36,14.2]
[1745937369601,81.11008853,147.36,147.32,36.49332566]
[1745937369799,96.59284165,147.36,147.32,36.49332566]
[1745937370301,15.48275312,147.33,147.32,14.223]
[1745937370670,15.48275312,147.33,147.32,0.063]
[1745937371475,22.27023699,147.33,147.32,0.063]
[1745937371901,28.51143699,147.33,147.32,0.063]
[1745937373694,31.03819578,147.33,147.32,0.063]
[1745937374014,26.0,147.35,147.32,0.063]
[1745937374185,50.79699578,147.35,147.32,0.063]
[1745937374694,24.79699578,147.34,147.32,0.063]
[1745937374880,24.79699578,147.35,147.32,0.063]
[1745937377209,6.78623192,147.36,147.32,0.063]
[1745937377524,24.79699578,147.33,147.32,0.063]
[1745937377816,24.79699578,147.34,147.32,0.063]
[1745937378414,24.79699578,147.35,147.32,0.063]
[1745937378612,82.9,147.36,147.33,24.79699578]
[1745937378994,82.9,147.36,147.33,38.95699578]
[1745937380915,82.9,147.36,147.33,45.7440899]
[1745937381215,82.9,147.36,147.34,24.79699578]
[1745937381920,82.9,147.36,147.35,24.79699578]
[1745937382408,82.9,147.36,147.34,24.79699578]
[1745937382734,82.9,147.38,147.34,24.79699578]
[1745937383225,107.69699578,147.38,147.34,24.79699578]
[1745937384324,107.69699578,147.38,147.35,6.7865626]
[1745937384885,82.9,147.38,147.35,6.7865626]
[1745937385390,82.9,147.38,147.37,24.79699578]
[1745937385802,82.9,147.38,147.36,24.79699578]
[1745937386422,82.9,147.38,147.36,31.58300233]
[1745937386802,82.9,147.38,147.37,24.79699578]
[1745937387510,82.9,147.38,147.36,24.79699578]
[1745937387716,82.9,147.38,147.35,31.58339828]
[1745937387929,82.9,147.38,147.36,24.79699578]
[1745937388531,82.9,147.38,147.37,24.79699578]
[1745937390417,82.9,147.38,147.37,31.58263736]
[1745937390621,82.9,147.41,147.37,31.58263736]
[1745937390820,82.9,147.41,147.39,24.79699578]
[1745937392129,82.9,147.41,147.38,38.95699578]
[1745937392731,82.9,147.41,147.38,45.74180416]
[1745937393515,82.9,147.41,147.38,36.41552767]
[1745937393716,82.9,147.41,147.39,15.47071929]
[1745937395137,82.9,147.41,147.38,20.94480838]
[1745937395334,82.9,147.41,147.39,15.47071929]
[1745937397326,82.9,147.41,147.39,22.25535981]
[1745937399231,15.47071929,147.4,147.38,14.16]
[1745937400141,82.9,147.41,147.38,14.16]
[1745937400722,98.37071929,147.41,147.38,14.16]
[1745937401040,105.15460788,147.41,147.38,14.16]
[1745937401250,82.9,147.4,147.38,14.16]
[1745937403343,82.9,147.4,147.38,29.63071929]
[1745937403528,82.9,147.4,147.38,36.41589816]
[1745937403717,82.9,147.42,147.39,15.47071929]
[1745937405133,82.9,147.42,147.39,6.78467125]
[1745937405447,82.9,147.42,147.39,22.25539054]
[1745937407949,15.47071929,147.41,147.38,14.16]
[1745937408154,98.37071929,147.4,147.38,14.16]
[1745937408351,82.9,147.4,147.38,14.16]
[1745937408732,82.9,147.4,147.38,36.41581382]
[1745937411554,82.9,147.4,147.39,15.47071929]
[1745937412859,82.9,147.4,147.39,22.25544009]
[1745937413950,15.50071929,147.44,147.39,6.7847208]
[1745937413951,15.47071929,147.42,147.39,6.7847208]
[1745937414589,15.47071929,147.41,147.38,20.94515665]
[1745937414858,15.47071929,147.4,147.38,14.16]
[1745937415030,82.9,147.43,147.38,14.16]
[1745937415031,15.47071929,147.41,147.38,14.16]
[1745937415426,89.68305881,147.43,147.38,14.16]
[1745937415427,15.47071929,147.42,147.38,20.94518084]
[1745937415959,15.47071929,147.42,147.38,36.41590013]
[1745937417165,98.37071929,147.43,147.38,36.41590013]
[1745937417762,15.47071929,147.42,147.38,14.16]
[1745937418235,15.47071929,147.42,147.38,36.41578315]
[1745937418441,98.37071929,147.43,147.38,36.41578315]
[1745937418752,82.9,147.43,147.39,15.47071929]
[1745937418950,98.37071929,147.43,147.39,22.25529909]
[1745937419838,82.9,147.42,147.39,22.25529909]
[1745937420235,82.9,147.42,147.41,15.47071929]
[1745937420452,0.03,147.44,147.41,15.47071929]
[1745937420667,0.03,147.44,147.43,15.47071929]
[1745937420838,0.03,147.44,147.43,29.59071929]
[1745937421038,0.03,147.44,147.43,36.3735993]
[1745937422075,0.03,147.44,147.43,41.43835743]
[1745937423281,0.03,147.44,147.43,67.580519]
[1745937423437,0.03,147.44,147.43,69.07889701]
[1745937423859,0.03,147.44,147.43,68.93673544]
[1745937424376,0.03,147.45,147.44,18.79181043]
[1745937424588,0.03,147.46,147.45,15.75504243]
[1745937424960,0.03,147.46,147.45,22.53700241]
[1745937425161,0.03,147.46,147.45,27.45959897]
[1745937425372,0.03,147.46,147.45,27.60176054]
[1745937425578,0.03,147.46,147.45,36.84840302]
[1745937426193,0.03,147.46,147.45,62.70624145]
[1745937427105,0.03,147.46,147.45,57.64148332]
[1745937429372,0.03,147.46,147.45,57.49932175]
[1745937430468,0.03,147.46,147.45,31.49932175]
[1745937430669,0.03,147.46,147.45,6.78195998]
[1745937430982,0.03,147.46,147.43,14.12]
[1745937431287,0.03,147.46,147.43,45.62011185]
[1745937431812,0.03,147.46,147.45,24.71736177]
[1745937432894,0.03,147.46,147.45,31.49932175]
[1745937433486,0.03,147.46,147.45,31.64148332]
[1745937434494,0.03,147.46,147.45,31.49932175]
[1745937434699,24.74736177,147.46,147.41,26.0]